fUST/lending_fUST_20250715
["ID","MTS","AMOUNT","RATE_DAILY","PERIOD"]
[372308012,1752581448914,-347.95553637,0.00021643,2]
[372308013,1752581448924,-1000.0,0.00021771,2]
[372308014,1752581448935,-505.63930367,0.00021771,2]
[372308015,1752581448945,-151.0,0.00021866,5]
[372308016,1752581448956,-3000.0,0.000219,2]
[372308017,1752581448968,-3000.0,0.0002191,2]
[372308018,1752581448978,-260.0,0.00021912,2]
[372308019,1752581448989,-157.18622255,0.00021917,2]
[372308020,1752581449001,-1112.15,0.00021917,2]
[372308021,1752581449012,-460.0,0.00021917,2]
[372308022,1752581449023,-460.0,0.00021917,2]
[372308023,1752581449034,-460.0,0.00021917,2]
[372308024,1752581449045,-460.0,0.00021917,2]
[372308025,1752581449056,-679.38,0.00021917,2]
[372308026,1752581449066,-500.0,0.00021917,2]
[372308027,1752581449077,-500.0,0.00021917,2]
[372308028,1752581449088,-500.0,0.00021917,2]
[372308029,1752581449099,-487.5,0.00021917,2]
[372308030,1752581449110,-638.33,0.00021917,2]
[372308031,1752581449121,-633.27,0.00021917,2]
[372308032,1752581449132,-1511.19,0.00021917,2]
[372308033,1752581449142,-357.185331,0.00021917,2]
[372308034,1752581449153,-460.0,0.00021917,2]
[372308035,1752581449164,-460.0,0.00021917,2]
[372308036,1752581449175,-460.0,0.00021917,2]
[372308037,1752581449186,-460.0,0.00021917,2]
[372308038,1752581449197,-1151.23,0.00021917,2]
[372308039,1752581449208,-1718.03,0.00021917,2]
[372308040,1752581449219,-460.0,0.00021917,2]
[372308041,1752581449230,-692.72,0.00021917,2]
[372308042,1752581449241,-1572.32,0.00021917,2]
[372308043,1752581449253,-690.77,0.00021917,2]
[372308044,1752581449264,-460.0,0.00021917,2]
[372308045,1752581449275,-587.05,0.00021917,2]
[372308046,1752581449285,-2057.82,0.00021917,2]
[372308047,1752581449297,-460.0,0.00021917,2]
[372308048,1752581449310,-490.07,0.00021917,2]
[372308049,1752581449323,-1492.45,0.00021917,2]
[372308050,1752581449334,-460.0,0.00021917,2]
[372308051,1752581449344,-564.44,0.00021917,2]
[372308052,1752581449355,-3000.0,0.0002192,2]
[372308053,1752581449365,-3000.0,0.0002193,2]
[372308054,1752581449556,-3000.0,0.0002194,2]
[372308055,1752581449569,-3000.0,0.0002195,2]
[372308056,1752581449578,-4201.899804,0.0002196,2]
[372308057,1752581449588,-200.0,0.0002199,2]
[372308058,1752581449598,-162.0,0.00022,2]
[372308059,1752581449607,-1000.0,0.00022118,2]
[372308060,1752581449617,-1011.45775859,0.00022124,2]
[372308061,1752581449626,-573.6907819,0.00022137,2]
[372308062,1752581449635,-1112.15,0.00022191,2]
[372308063,1752581449645,-460.0,0.00022191,2]
[372308064,1752581449654,-460.0,0.00022191,2]
[372308065,1752581449664,-234.33571546,0.00022191,2]
[372308066,1752581449673,-460.0,0.00022191,2]
[372308067,1752581449682,-679.38,0.00022191,2]
[372308068,1752581449692,-638.33,0.00022191,2]
[372308069,1752581449702,-633.27,0.00022191,2]
[372308070,1752581449711,-1511.19,0.00022191,2]
[372308071,1752581449720,-460.0,0.00022191,2]
[372308072,1752581449730,-460.0,0.00022191,2]
[372308073,1752581449740,-363.2914832,0.00022191,2]
[372308074,1752581449751,-460.0,0.00022191,2]
[372308075,1752581449761,-1151.23,0.00022191,2]
[372308076,1752581449770,-1718.03,0.00022191,2]
[372308077,1752581449779,-460.0,0.00022191,2]
[372308078,1752581449789,-692.72,0.00022191,2]
[372308079,1752581449799,-1572.32,0.00022191,2]
[372308080,1752581449808,-690.77,0.00022191,2]
[372308081,1752581449818,-460.0,0.00022191,2]
[372308082,1752581449827,-587.05,0.00022191,2]
[372308083,1752581449837,-2057.82,0.00022191,2]
[372308084,1752581449847,-460.0,0.00022191,2]
[372308085,1752581449857,-490.07,0.00022191,2]
[372308086,1752581449867,-1492.45,0.00022191,2]
[372308087,1752581449877,-460.0,0.00022191,2]
[372308088,1752581449886,-564.44,0.00022191,2]
[372308089,1752581449895,-162.0,0.00022192,7]
[372308090,1752581449906,-1202.04,0.000222,7]
[372308091,1752581449916,-151.0,0.00022203,5]
[372308092,1752581449927,-500.0,0.0002223,2]
[372308093,1752581449937,-407.0,0.00022264,2]
[372308094,1752581449948,-1500.0,0.00022319,2]
[372308095,1752581449960,-150.0,0.00022368,2]
[372308096,1752581449970,-150.0,0.00022368,2]
[372308097,1752581449980,-647.0,0.00022368,2]
[372308098,1752581449991,-2207.376,0.00022368,2]
[372308099,1752581450002,-968.0,0.00022368,2]
[372308100,1752581450012,-163.179767,0.00022397,3]
[372308101,1752581450021,-1402.57,0.000224,2]
[372308102,1752581450031,-360.0,0.0002246,2]
[372308103,1752581450040,-1112.15,0.00022465,2]
[372308104,1752581450050,-460.0,0.00022465,2]
[372308105,1752581450059,-460.0,0.00022465,2]
[372308106,1752581450069,-460.0,0.00022465,2]
[372308107,1752581450079,-679.38,0.00022465,2]
[372308108,1752581450089,-638.33,0.00022465,2]
[372308109,1752581450099,-633.27,0.00022465,2]
[372308110,1752581450109,-1511.19,0.00022465,2]
[372308111,1752581450118,-556.26219715,0.00022465,2]
[372308112,1752581450128,-460.0,0.00022465,2]
[372308113,1752581450137,-460.0,0.00022465,2]
[372308114,1752581450147,-1151.23,0.00022465,2]
[372308115,1752581450157,-1718.03,0.00022465,2]
[372308116,1752581450166,-460.0,0.00022465,2]
[372308117,1752581450176,-692.72,0.00022465,2]
[372308118,1752581450186,-1572.32,0.00022465,2]
[372308119,1752581450195,-690.77,0.00022465,2]
[372308120,1752581450205,-460.0,0.00022465,2]
[372308121,1752581450214,-587.05,0.00022465,2]
[372308122,1752581450223,-2057.82,0.00022465,2]
[372308123,1752581450233,-338.60435472,0.00022465,2]
[372308124,1752581450244,-490.07,0.00022465,2]
[372308125,1752581450254,-1492.45,0.00022465,2]
[372308126,1752581450264,-358.10076187,0.00022465,2]
[372308127,1752581450273,-564.44,0.00022465,2]
[372308128,1752581450284,-163.179767,0.00022491,2]
[372308129,1752581450294,-215.0738,0.00022524,2]
[372308130,1752581450303,-163.179767,0.0002254,10]
[372308131,1752581450316,-151.0,0.0002254,5]
[372308132,1752581450326,-429.0948676,0.00022548,2]
[372308133,1752581450336,-429.0948676,0.00022548,2]
[372308134,1752581450345,-429.0948676,0.00022548,2]
[372308135,1752581450356,-909.04829,0.00022552,8]
[372308136,1752581450366,-168.0,0.00022597,2]
[372308137,1752581450375,-235.485391,0.00022603,2]
[372308138,1752581450386,-584.31262172,0.00022609,2]
[372308139,1752581450395,-736.99954825,0.00022618,2]
[372308140,1752581450405,-200.0,0.0002264,5]
[372308141,1752581450415,-1500.0,0.00022666,2]
[372308142,1752581450424,-1529.37835395,0.00022668,2]
[372308143,1752581450434,-163.179767,0.00022672,5]
[372308144,1752581450445,-2441.6,0.000227,7]
[372308145,1752581450455,-1112.15,0.00022739,2]
[372308146,1752581450466,-460.0,0.00022739,2]
[372308147,1752581450476,-460.0,0.00022739,2]
[372308148,1752581450486,-460.0,0.00022739,2]
[372308149,1752581450496,-679.38,0.00022739,2]
[372308150,1752581450506,-638.33,0.00022739,2]
[372308151,1752581450516,-633.27,0.00022739,2]
[372308152,1752581450525,-1511.19,0.00022739,2]
[372308153,1752581450535,-460.0,0.00022739,2]
[372308154,1752581450545,-460.0,0.00022739,2]
[372308155,1752581450555,-1151.23,0.00022739,2]
[372308156,1752581450564,-1718.03,0.00022739,2]
[372308157,1752581450573,-460.0,0.00022739,2]
[372308158,1752581450583,-692.72,0.00022739,2]
[372308159,1752581450592,-1572.32,0.00022739,2]
[372308160,1752581450602,-690.77,0.00022739,2]
[372308161,1752581450611,-460.0,0.00022739,2]
[372308162,1752581450620,-587.05,0.00022739,2]
[372308163,1752581450630,-2057.82,0.00022739,2]
[372308164,1752581450639,-490.07,0.00022739,2]
[372308165,1752581450649,-1492.45,0.00022739,2]
[372308166,1752581450658,-564.44,0.00022739,2]
[372308167,1752581450668,-214.37129034,0.00022797,7]
[372308168,1752581450677,-21916.0,0.000228,7]
[372308169,1752581450686,-163.179767,0.00022815,7]
[372308170,1752581450696,-828.9085673,0.00022867,2]
[372308171,1752581450705,-328.18003803,0.00022877,2]
[372308172,1752581450714,-151.0,0.00022877,6]
[372308173,1752581450724,-214.37129034,0.00022957,3]
[372308174,1752581450733,-9710.65687929,0.00022957,3]
[372308175,1752581450743,-166.0,0.00022967,3]
[372308176,1752581450752,-166.0,0.00022967,3]
[372308177,1752581450762,-166.0,0.00022967,3]
[372308178,1752581450771,-166.0,0.00022967,3]
[372308179,1752581450781,-166.0,0.00022967,3]
[372308180,1752581450790,-1751.0,0.00022967,3]
[372308181,1752581450801,-166.0,0.00022967,3]
[372308182,1752581450809,-166.0,0.00022967,3]
[372308183,1752581450819,-1751.0,0.00022967,3]
[372308184,1752581450828,-166.0,0.00022967,3]
[372308185,1752581450837,-1751.0,0.00022967,3]
[372308186,1752581450847,-172.0,0.00022967,3]
[372308187,1752581450856,-338.05791611,0.00022967,3]
[372308188,1752581450865,-1751.0,0.00022967,3]
[372308189,1752581450875,-1751.0,0.00022967,3]
[372308190,1752581450884,-1751.0,0.00022967,3]
[372308191,1752581450894,-1751.0,0.00022967,3]
[372308192,1752581450904,-1751.0,0.00022967,3]
[372308193,1752581450915,-1751.0,0.00022967,3]
[372308194,1752581450924,-329.35691208,0.00022967,3]
[372308195,1752581450934,-328.18003803,0.00022986,2]
[372308196,1752581450943,-160.0,0.00023,3]
[372308197,1752581450953,-838.84061749,0.00023,3]
[372308198,1752581450962,-160.0,0.00023,3]
[372308199,1752581450972,-215.50840239,0.00023,3]
[372308200,1752581450981,-230.76969291,0.00023,3]
[372308201,1752581450991,-525.51022752,0.00023,3]
[372308202,1752581451002,-160.0,0.00023,3]
[372308203,1752581451011,-460.0,0.00023008,2]
[372308204,1752581451021,-1112.15,0.00023013,2]
[372308205,1752581451030,-460.0,0.00023013,2]
[372308206,1752581451039,-460.0,0.00023013,2]
[372308207,1752581451049,-460.0,0.00023013,2]
[372308208,1752581451058,-679.38,0.00023013,2]
[372308209,1752581451068,-638.33,0.00023013,2]
[372308210,1752581451078,-633.27,0.00023013,2]
[372308211,1752581451087,-1511.19,0.00023013,2]
[372308212,1752581451097,-510.87636332,0.00023013,2]
[372308213,1752581451107,-460.0,0.00023013,2]
[372308214,1752581451117,-1151.23,0.00023013,2]
[372308215,1752581451126,-1718.03,0.00023013,2]
[372308216,1752581451136,-460.0,0.00023013,2]
[372308217,1752581451145,-692.72,0.00023013,2]
[372308218,1752581451155,-1572.32,0.00023013,2]
[372308219,1752581451165,-690.77,0.00023013,2]
[372308220,1752581451174,-203.30527155,0.00023013,2]
[372308221,1752581451184,-587.05,0.00023013,2]
[372308222,1752581451193,-2057.82,0.00023013,2]
[372308223,1752581451203,-490.07,0.00023013,2]
[372308224,1752581451212,-1492.45,0.00023013,2]
[372308225,1752581451222,-564.44,0.00023013,2]
[372308226,1752581451231,-162.0,0.00023014,7]
[372308227,1752581451241,-2200.0,0.00023068,2]
[372308228,1752581451251,-3529.0,0.00023085,2]
[372308229,1752581451261,-328.18003803,0.00023123,2]
[372308230,1752581451271,-2000.0,0.00023214,2]
[372308231,1752581451281,-151.0,0.00023215,6]
[372308232,1752581451290,-328.18003803,0.00023233,2]
[372308233,1752581451301,-1112.15,0.00023287,2]
[372308234,1752581451312,-460.0,0.00023287,2]
[372308235,1752581451322,-460.0,0.00023287,2]
[372308236,1752581451331,-460.0,0.00023287,2]
[372308237,1752581451341,-679.38,0.00023287,2]
[372308238,1752581451351,-638.33,0.00023287,2]
[372308239,1752581451361,-633.27,0.00023287,2]
[372308240,1752581451370,-1511.19,0.00023287,2]
[372308241,1752581451380,-460.0,0.00023287,2]
[372308242,1752581451391,-1151.23,0.00023287,2]
[372308243,1752581451401,-1718.03,0.00023287,2]
[372308244,1752581451411,-460.0,0.00023287,2]
[372308245,1752581451420,-692.72,0.00023287,2]
[372308246,1752581451429,-1572.32,0.00023287,2]
[372308247,1752581451439,-690.77,0.00023287,2]
[372308248,1752581451448,-587.05,0.00023287,2]
[372308249,1752581451458,-2057.82,0.00023287,2]
[372308250,1752581451467,-490.07,0.00023287,2]
[372308251,1752581451477,-1492.45,0.00023287,2]
[372308252,1752581451486,-564.44,0.00023287,2]
[372308253,1752581451496,-500.0,0.00023326,2]
[372308254,1752581451507,-328.18003803,0.00023342,2]
[372308255,1752581451516,-328.18003803,0.00023452,2]
[372308256,1752581451526,-584.31262172,0.00023492,2]
[372308257,1752581451536,-1202.04,0.000235,7]
[372308258,1752581451546,-823.0,0.00023539,2]
[372308259,1752581451557,-151.0,0.00023552,6]
[372308260,1752581451567,-560.0,0.00023556,2]
[372308261,1752581451576,-151.0,0.00023561,7]
[372308262,1752581451585,-1112.15,0.00023561,2]
[372308263,1752581451595,-235.30441826,0.00023561,2]
[372308264,1752581451604,-460.0,0.00023561,2]
[372308265,1752581451614,-460.0,0.00023561,2]
[372308266,1752581451623,-679.38,0.00023561,2]
[372308267,1752581451633,-38.41040382,0.00023561,2]
[372308268,1752581451726,-599.91959618,0.00023561,2]
[372308269,1752581451736,-633.27,0.00023561,2]
[372308270,1752581451746,-1511.19,0.00023561,2]
[372308271,1752581451757,-460.0,0.00023561,2]
[372308272,1752581451766,-1151.23,0.00023561,2]
[372308273,1752581451776,-1718.03,0.00023561,2]
[372308274,1752581451786,-460.0,0.00023561,2]
[372308275,1752581451796,-692.72,0.00023561,2]
[372308276,1752581451806,-200.0,0.00023561,2]
[372308277,1752581451815,-200.0,0.00023561,2]
[372308278,1752581451825,-200.0,0.00023561,2]
[372308279,1752581451835,-200.0,0.00023561,2]
[372308280,1752581451844,-200.0,0.00023561,2]
[372308281,1752581451854,-200.0,0.00023561,2]
[372308282,1752581451864,-250.20445081,0.00023561,2]
[372308283,1752581451874,-1572.32,0.00023561,2]
[372308284,1752581451886,-587.05,0.00023561,2]
[372308285,1752581451895,-690.77,0.00023561,2]
[372308286,1752581451906,-2057.82,0.00023561,2]
[372308287,1752581451916,-490.07,0.00023561,2]
[372308288,1752581451927,-1492.45,0.00023561,2]
[372308289,1752581451938,-564.44,0.00023561,2]
[372308290,1752581451948,-328.18003803,0.00023562,2]
[372308291,1752581451958,-163.179767,0.00023625,6]
[372308292,1752581451969,-736.99954825,0.00023659,2]
[372308293,1752581451980,-328.18003803,0.00023671,2]
[372308294,1752581451989,-206.0,0.0002368,2]
[372308295,1752581452000,-2500.0,0.00023762,2]
[372308296,1752581452009,-328.18003803,0.00023781,2]
[372308297,1752581452019,-7281.13002871,0.000238,7]
[372308298,1752581452029,-21916.0,0.000238,7]
[372308299,1752581452039,-2441.6,0.000238,7]
[372308300,1752581452050,-160.0,0.00023805,3]
[372308301,1752581452061,-500.0,0.00023809,9]
[372308302,1752581452071,-1112.15,0.00023835,2]
[372308303,1752581452081,-294.56393702,0.00023835,2]
[372308304,1752581452092,-460.0,0.00023835,2]
[372308305,1752581452103,-679.38,0.00023835,2]
[372308306,1752581452113,-638.33,0.00023835,2]
[372308307,1752581452123,-633.27,0.00023835,2]
[372308308,1752581452133,-1511.19,0.00023835,2]
[372308309,1752581452143,-460.0,0.00023835,2]
[372308310,1752581452154,-1151.23,0.00023835,2]
[372308311,1752581452163,-1718.03,0.00023835,2]
[372308312,1752581452173,-460.0,0.00023835,2]
[372308313,1752581452183,-692.72,0.00023835,2]
[372308314,1752581452193,-1572.32,0.00023835,2]
[372308315,1752581452203,-690.77,0.00023835,2]
[372308316,1752581452213,-587.05,0.00023835,2]
[372308317,1752581452223,-2057.82,0.00023835,2]
[372308318,1752581452233,-490.07,0.00023835,2]
[372308319,1752581452243,-1492.45,0.00023835,2]
[372308320,1752581452254,-564.44,0.00023835,2]
[372308321,1752581452263,-2200.38032,0.0002388,5]
[372308322,1752581452273,-500.0,0.00023887,9]
[372308323,1752581452283,-151.0,0.00023889,6]
[372308324,1752581452293,-328.18003803,0.0002389,2]
[372308325,1752581452303,-223.0315306,0.00023893,2]
[372308326,1752581452317,-604.43985556,0.00023904,2]
[372308327,1752581452326,-1315.79517093,0.00023948,8]
[372308328,1752581452335,-150.0,0.00023973,2]
[372308329,1752581452345,-500.0,0.00023973,2]
[372308330,1752581452355,-150.0,0.00023973,2]
[372308331,1752581452364,-160.0,0.00024,7]
[372308332,1752581452373,-160.0,0.00024,10]
[372308333,1752581452384,-332.5781634,0.00024,14]
[372308334,1752581452394,-1692.144531,0.00024,2]
[372308335,1752581452403,-10140.16076514,0.00024,2]
[372308336,1752581452412,-161.76290094,0.00024,2]
[372308337,1752581452421,-453.44131553,0.00024,2]
[372308338,1752581452431,-178.82698961,0.00024,7]
[372308339,1752581452440,-843.0,0.00024,14]
[372308340,1752581452449,-160.0,0.00024,7]
[372308341,1752581452458,-160.0,0.00024,10]
[372308342,1752581452468,-15413.56240792,0.00024,10]
[372308343,1752581452482,-1020.55924771,0.00024,10]
[372308344,1752581452494,-2176.00156645,0.00024,10]
[372308348,1752581486570,183.703344,0.00027397,120]
[372308352,1752581703129,5514.64081393,0.00016337,2]
[372308353,1752581703153,4636.51580693,0.00016337,2]
[372308354,1752581725425,6938.54139307,0.000181,2]
[372308355,1752581725446,3061.45860693,0.000181,2]
[372308356,1752581766821,150.0,0.00014768,2]
[372308358,1752581871776,1304.2,0.00023,30]
[372308362,1752581933212,198.087726,0.00017885,2]
[372308364,1752581957181,165.0,0.000181,2]
[372308376,1752582337096,-158.62891,0.00018125,2]
[372308377,1752582337118,-160.0,0.00018244,2]
[372308378,1752582337141,-300.0,0.00018245,2]
[372308379,1752582337163,-286.0,0.00018245,2]
[372308380,1752582337185,-300.0,0.00018245,2]
[372308381,1752582337207,-50.92007285,0.00018245,2]
[372308382,1752582360190,165.31717,0.00018049,2]
[372308383,1752582360392,165.31717,0.00018085,2]
[372308390,1752582425081,-165.31717,0.00018121,2]
[372308391,1752582425102,-99.52404378,0.00018145,2]
[372308392,1752582429240,-71.4585694,0.00018145,2]
[372308393,1752582429261,-165.31717,0.00018157,2]
[372308394,1752582429282,-165.31717,0.00018194,2]
[372308395,1752582429304,-165.31717,0.0001823,2]
[372308396,1752582429325,-249.07992715,0.00018245,2]
[372308397,1752582429346,-48.71348623,0.00018245,2]
[372308398,1752582434151,-367.28651377,0.00018245,2]
[372308399,1752582434172,-223.0,0.00018245,2]
[372308400,1752582434195,-300.0,0.00018245,2]
[372308401,1752582434216,-912.49043968,0.00018246,2]
[372308408,1752582524870,460.0,0.0002535,120]
[372308413,1752582552610,241.096731,0.00013699,2]
[372308440,1752582632579,-300.0,0.00018245,2]
[372308441,1752582632589,-23987.50956032,0.00018246,2]
[372308442,1752582632598,-341.96522634,0.00018503,2]
[372308444,1752582632608,-312.11253376,0.00018603,2]
[372308446,1752582632620,-156.05626688,0.00018868,2]
[372308447,1752582632630,-777.82829627,0.000189,2]
[372308448,1752582632639,-211.1332636,0.00019078,2]
[372308449,1752582632649,-2004.89,0.00019078,2]
[372308450,1752582632660,-240.76926184,0.00019166,2]
[372308451,1752582632670,-297.45462002,0.00019173,2]
[372308452,1752582632680,-460.0,0.00019178,2]
[372308453,1752582632690,-460.0,0.00019178,2]
[372308455,1752582632700,-460.0,0.00019178,2]
[372308456,1752582632710,-460.0,0.00019178,2]
[372308457,1752582632720,-460.0,0.00019178,2]
[372308458,1752582632730,-460.0,0.00019178,2]
[372308459,1752582632740,-458.15983066,0.00019178,2]
[372308460,1752582632750,-460.0,0.00019178,2]
[372308461,1752582632760,-460.0,0.00019178,2]
[372308462,1752582632770,-460.0,0.00019178,2]
[372308463,1752582632781,-460.0,0.00019178,2]
[372308464,1752582632791,-463.59093154,0.00019178,2]
[372308465,1752582632801,-460.0,0.00019178,2]
[372308466,1752582632811,-460.0,0.00019178,2]
[372308467,1752582632820,-179.11536866,0.00019178,2]
[372308468,1752582632830,-460.0,0.00019178,2]
[372308469,1752582632839,-460.0,0.00019178,2]
[372308470,1752582632849,-460.0,0.00019178,2]
[372308471,1752582632858,-373.15913016,0.00019178,2]
[372308472,1752582632868,-460.0,0.00019178,2]
[372308473,1752582632878,-460.0,0.00019178,2]
[372308474,1752582632887,-460.0,0.00019178,2]
[372308475,1752582632900,-460.0,0.00019178,2]
[372308476,1752582632915,-460.0,0.00019178,2]
[372308477,1752582632925,-460.0,0.00019178,2]
[372308478,1752582632935,-460.0,0.00019178,2]
[372308479,1752582632945,-460.0,0.00019178,2]
[372308480,1752582632954,-460.0,0.00019178,2]
[372308481,1752582632964,-460.0,0.00019178,2]
[372308482,1752582632974,-460.0,0.00019178,2]
[372308483,1752582632983,-460.0,0.00019178,2]
[372308484,1752582632992,-202.67426909,0.00019178,2]
[372308485,1752582633002,-460.0,0.00019178,2]
[372308486,1752582633012,-460.0,0.00019178,2]
[372308487,1752582633021,-460.0,0.00019178,2]
[372308488,1752582633033,-460.0,0.00019178,2]
[372308489,1752582633043,-460.0,0.00019178,2]
[372308490,1752582633054,-460.0,0.00019178,2]
[372308491,1752582633066,-282.19192418,0.00019178,2]
[372308492,1752582633075,-461.7650076,0.00019178,2]
[372308493,1752582633086,-460.0,0.00019178,2]
[372308494,1752582633097,-460.0,0.00019178,2]
[372308495,1752582633108,-460.0,0.00019178,2]
[372308496,1752582633119,-460.0,0.00019178,2]
[372308497,1752582633129,-463.71264878,0.00019178,2]
[372308498,1752582633140,-460.0,0.00019178,2]
[372308499,1752582633150,-460.0,0.00019178,2]
[372308500,1752582633159,-460.0,0.00019178,2]
[372308501,1752582633168,-578.96,0.00019178,2]
[372308502,1752582633177,-460.0,0.00019178,2]
[372308503,1752582633187,-460.0,0.00019178,2]
[372308504,1752582633196,-460.0,0.00019178,2]
[372308505,1752582633205,-460.0,0.00019178,2]
[372308506,1752582633215,-460.0,0.00019178,2]
[372308507,1752582633224,-460.0,0.00019178,2]
[372308508,1752582633234,-460.0,0.00019178,2]
[372308509,1752582633243,-460.0,0.00019178,2]
[372308510,1752582633253,-201.30261798,0.00019178,2]
[372308511,1752582633262,-460.0,0.00019178,2]
[372308512,1752582633272,-460.0,0.00019178,2]
[372308513,1752582633284,-460.0,0.00019178,2]
[372308514,1752582633294,-460.0,0.00019178,2]
[372308515,1752582633304,-356.47296819,0.00019178,2]
[372308516,1752582633313,-462.63422578,0.00019178,2]
[372308517,1752582633322,-460.0,0.00019178,2]
[372308518,1752582633331,-460.0,0.00019178,2]
[372308519,1752582633340,-460.0,0.00019178,2]
[372308520,1752582633350,-460.0,0.00019178,2]
[372308521,1752582633358,-460.0,0.00019178,2]
[372308522,1752582633368,-460.0,0.00019178,2]
[372308523,1752582633378,-460.0,0.00019178,2]
[372308524,1752582633387,-460.0,0.00019178,2]
[372308525,1752582633397,-460.0,0.00019178,2]
[372308526,1752582633408,-460.0,0.00019178,2]
[372308527,1752582633417,-460.0,0.00019178,2]
[372308528,1752582633427,-460.0,0.00019178,2]
[372308529,1752582633436,-460.0,0.00019178,2]
[372308530,1752582633446,-460.0,0.00019178,2]
[372308531,1752582633456,-460.0,0.00019178,2]
[372308532,1752582633466,-460.0,0.00019178,2]
[372308533,1752582633477,-460.0,0.00019178,2]
[372308534,1752582633486,-460.0,0.00019178,2]
[372308535,1752582633496,-460.0,0.00019178,2]
[372308536,1752582633506,-460.0,0.00019178,2]
[372308537,1752582633515,-460.0,0.00019178,2]
[372308538,1752582633525,-460.0,0.00019178,2]
[372308539,1752582633540,-460.0,0.00019178,2]
[372308540,1752582633550,-460.0,0.00019178,2]
[372308541,1752582633560,-460.0,0.00019178,2]
[372308542,1752582633570,-460.0,0.00019178,2]
[372308543,1752582633580,-460.0,0.00019178,2]
[372308544,1752582633590,-460.0,0.00019178,2]
[372308545,1752582633600,-460.0,0.00019178,2]
[372308546,1752582633613,-460.0,0.00019178,2]
[372308547,1752582633622,-201.77776339,0.00019178,2]
[372308548,1752582633632,-460.0,0.00019178,2]
[372308549,1752582633642,-664.93,0.00019178,2]
[372308550,1752582633652,-460.0,0.00019178,2]
[372308551,1752582633661,-460.0,0.00019178,2]
[372308552,1752582633670,-460.0,0.00019178,2]
[372308553,1752582633680,-460.0,0.00019178,2]
[372308554,1752582633689,-460.0,0.00019178,2]
[372308555,1752582633699,-460.0,0.00019178,2]
[372308556,1752582633709,-460.0,0.00019178,2]
[372308557,1752582633718,-460.0,0.00019178,2]
[372308558,1752582633728,-460.0,0.00019178,2]
[372308559,1752582633737,-460.0,0.00019178,2]
[372308560,1752582633747,-508.45,0.00019178,2]
[372308561,1752582633756,-460.0,0.00019178,2]
[372308562,1752582633766,-460.0,0.00019178,2]
[372308563,1752582633776,-299.37432291,0.00019178,2]
[372308564,1752582633788,-460.0,0.00019178,2]
[372308565,1752582633798,-460.0,0.00019178,2]
[372308566,1752582633808,-460.0,0.00019178,2]
[372308567,1752582633817,-460.0,0.00019178,2]
[372308568,1752582633827,-460.0,0.00019178,2]
[372308569,1752582633837,-514.45,0.00019178,2]
[372308570,1752582633846,-460.0,0.00019178,2]
[372308571,1752582633855,-460.0,0.00019178,2]
[372308572,1752582633864,-460.0,0.00019178,2]
[372308573,1752582633873,-463.82926034,0.00019178,2]
[372308574,1752582633882,-460.0,0.00019178,2]
[372308575,1752582633891,-460.0,0.00019178,2]
[372308576,1752582633900,-460.0,0.00019178,2]
[372308577,1752582633910,-500.0,0.00019178,2]
[372308578,1752582633923,-500.0,0.00019178,2]